[Event "January 2 Late 2024"]
[Site "https://www.chess.com"]
[Date "2024.01.02"]
[Round "5"]
[White "Titus, Andrew"]
[Black "Lopusiewicz, Piotr"]
[Result "1-0"]
[Board "103"]
[TimeControl "180+1"]
[WhiteFideId "2059770"]
[BlackFideId "1116029"]
[WhiteElo "2613"]
[BlackElo "2461"]
[WhiteTeam "USA"]
[BlackTeam "POL"]
[WhiteClock "0:00:12"]
[BlackClock "0:00:01"]

1. e4 {[%clk 0:03:00]}  e5 {[%clk 0:02:59]} 2. Nf3 {[%clk 0:03:00]}  Nc6 {[%clk 0:03:00]} 3. Bb5 {[%clk 0:02:54]}  a6 {[%clk 0:03:00]} 4. Ba4 {[%clk 0:02:52]}  Nf6 {[%clk 0:03:00]} 5. O-O {[%clk 0:02:51]}  Be7 {[%clk 0:03:00]} 6. Bxc6 {[%clk 0:02:50]}  dxc6 {[%clk 0:02:59]} 7. Qe1 {[%clk 0:02:50]}  Bd6 {[%clk 0:02:49]} 8. b3 {[%clk 0:02:44]}  O-O {[%clk 0:02:46]} 9. Bb2 {[%clk 0:02:43]}  Qe7 {[%clk 0:02:45]} 10. h3 {[%clk 0:02:37]}  Nd7 {[%clk 0:02:39]} 11. d4 {[%clk 0:02:25]}  a5 {[%clk 0:02:34]} 12. Nbd2 {[%clk 0:02:09]}  b5 {[%clk 0:02:22]} 13. dxe5 {[%clk 0:02:03]}  Nxe5 {[%clk 0:02:22]} 14. Nxe5 {[%clk 0:02:04]}  Bxe5 {[%clk 0:02:22]} 15. Bxe5 {[%clk 0:02:04]}  Qxe5 {[%clk 0:02:23]} 16. Qe3 {[%clk 0:02:01]}  Re8 {[%clk 0:02:15]} 17. f4 {[%clk 0:01:59]}  Qb2 {[%clk 0:02:07]} 18. Nf3 {[%clk 0:01:47]}  Bf5 {[%clk 0:01:53]} 19. Ne5 {[%clk 0:01:39]}  Qxc2 {[%clk 0:01:38]} 20. exf5 {[%clk 0:01:35]}  f6 {[%clk 0:01:38]} 21. Rac1 {[%clk 0:00:31]}  Qxf5 {[%clk 0:01:37]} 22. Rxc6 {[%clk 0:00:29]}  fxe5 {[%clk 0:01:32]} 23. fxe5 {[%clk 0:00:29]}  Qxe5 {[%clk 0:01:32]} 24. Qxe5 {[%clk 0:00:29]}  Rxe5 {[%clk 0:01:31]} 25. Rxc7 {[%clk 0:00:29]}  Rf8 {[%clk 0:01:25]} 26. Rd1 {[%clk 0:00:20]}  Ref5 {[%clk 0:01:03]} 27. Rdd7 {[%clk 0:00:19]}  Rf1+ {[%clk 0:01:01]} 28. Kh2 {[%clk 0:00:19]}  R1f7 {[%clk 0:01:02]} 29. Rxf7 {[%clk 0:00:18]}  Rxf7 {[%clk 0:01:02]} 30. Rc8+ {[%clk 0:00:17]}  Rf8 {[%clk 0:01:02]} 31. Rc5 {[%clk 0:00:17]}  Rb8 {[%clk 0:01:02]} 32. Kg3 {[%clk 0:00:17]}  Kf7 {[%clk 0:01:00]} 33. Kf4 {[%clk 0:00:17]}  Rb6 {[%clk 0:00:37]} 34. g4 {[%clk 0:00:16]}  Ke6 {[%clk 0:00:32]} 35. Ke4 {[%clk 0:00:16]}  a4 {[%clk 0:00:30]} 36. b4 {[%clk 0:00:15]}  h6 {[%clk 0:00:28]} 37. h4 {[%clk 0:00:15]}  Kf6 {[%clk 0:00:24]} 38. g5+ {[%clk 0:00:14]}  hxg5 {[%clk 0:00:22]} 39. hxg5+ {[%clk 0:00:14]}  Kg6 {[%clk 0:00:22]} 40. Re5 {[%clk 0:00:15]}  Kh5 {[%clk 0:00:18]} 41. Kd4 {[%clk 0:00:14]}  Rd6+ {[%clk 0:00:14]} 42. Kc5 {[%clk 0:00:14]}  Rd2 {[%clk 0:00:15]} 43. Kxb5 {[%clk 0:00:14]}  Rxa2 {[%clk 0:00:15]} 44. Ka5 {[%clk 0:00:12]}  a3 {[%clk 0:00:15]} 45. Ka4 {[%clk 0:00:12]}  Ra1 {[%clk 0:00:13]} 46. b5 {[%clk 0:00:12]}  a2 {[%clk 0:00:13]} 47. Ka3 {[%clk 0:00:11]}  g6 {[%clk 0:00:03]} 48. Kb2 {[%clk 0:00:10]}  Rb1+ {[%clk 0:00:02]} 49. Kxa2 {[%clk 0:00:10]}  Rb4 {[%clk 0:00:02]} 50. Ka3 {[%clk 0:00:10]}  Rb1 {[%clk 0:00:02]} 51. Ka4 {[%clk 0:00:10]}  Kg4 {[%clk 0:00:03]} 52. Ka5 {[%clk 0:00:11]}  Kf4 {[%clk 0:00:03]} 53. Rc5 {[%clk 0:00:11]}  Ra1+ {[%clk 0:00:02]} 54. Kb6 {[%clk 0:00:11]}  Rb1 {[%clk 0:00:01]} 55. Kc6 {[%clk 0:00:12]}  Rg1 {[%clk 0:00:02]} 56. b6 {[%clk 0:00:12]}  Rb1 {[%clk 0:00:01]} 57. b7 {[%clk 0:00:12]}  Ke4 {[%clk 0:00:01]} 58. Kc7 {[%clk 0:00:12]} 1-0

[Event "January 2 Late 2024"]
[Site "https://www.chess.com"]
[Date "2024.01.02"]
[Round "5"]
[White "Poltorak, Sebastian"]
[Black "Morales Garcia, Sergio Joshafatt"]
[Result "1-0"]
[Board "105"]
[TimeControl "180+1"]
[WhiteFideId "1199498"]
[BlackFideId "5106249"]
[WhiteElo "2608"]
[BlackElo "2443"]
[WhiteTeam "POL"]
[BlackTeam "MEX"]
[WhiteClock "0:00:06"]
[BlackClock "0:00:00"]

1. a3 {[%clk 0:03:00]}  d5 {[%clk 0:02:55]} 2. Nf3 {[%clk 0:02:59]}  Nf6 {[%clk 0:02:53]} 3. b4 {[%clk 0:02:59]}  g6 {[%clk 0:02:50]} 4. Bb2 {[%clk 0:02:58]}  Bg7 {[%clk 0:02:51]} 5. e3 {[%clk 0:02:58]}  a5 {[%clk 0:02:48]} 6. Be2 {[%clk 0:02:58]}  O-O {[%clk 0:02:44]} 7. O-O {[%clk 0:02:57]}  Re8 {[%clk 0:02:41]} 8. d4 {[%clk 0:02:54]}  Ne4 {[%clk 0:02:38]} 9. Nbd2 {[%clk 0:02:53]}  Nxd2 {[%clk 0:02:34]} 10. Qxd2 {[%clk 0:02:53]}  Bf5 {[%clk 0:02:29]} 11. c4 {[%clk 0:02:46]}  dxc4 {[%clk 0:02:24]} 12. Bxc4 {[%clk 0:02:46]}  Nd7 {[%clk 0:02:22]} 13. e4 {[%clk 0:02:33]}  Bg4 {[%clk 0:02:14]} 14. Ng5 {[%clk 0:02:05]}  Ne5 {[%clk 0:01:54]} 15. Qf4 {[%clk 0:01:57]}  Nxc4 {[%clk 0:01:12]} 16. Qxf7+ {[%clk 0:01:55]}  Kh8 {[%clk 0:01:11]} 17. Qxc4 {[%clk 0:01:55]}  Rf8 {[%clk 0:01:05]} 18. h3 {[%clk 0:01:52]}  e6 {[%clk 0:00:50]} 19. Bc1 {[%clk 0:01:28]}  Qxd4 {[%clk 0:00:45]} 20. Qxd4 {[%clk 0:01:19]}  Bxd4 {[%clk 0:00:46]} 21. Ra2 {[%clk 0:01:20]}  h6 {[%clk 0:00:23]} 22. hxg4 {[%clk 0:01:20]}  hxg5 {[%clk 0:00:23]} 23. bxa5 {[%clk 0:01:18]}  Rxa5 {[%clk 0:00:17]} 24. Rd1 {[%clk 0:01:19]}  e5 {[%clk 0:00:16]} 25. Bxg5 {[%clk 0:01:18]}  Rfa8 {[%clk 0:00:12]} 26. Be7 {[%clk 0:01:16]}  Kg8 {[%clk 0:00:10]} 27. Bb4 {[%clk 0:01:15]}  R5a6 {[%clk 0:00:09]} 28. Rc2 {[%clk 0:01:15]}  c6 {[%clk 0:00:08]} 29. Rd3 {[%clk 0:01:09]}  c5 {[%clk 0:00:07]} 30. Bxc5 {[%clk 0:00:59]}  Rc8 {[%clk 0:00:08]} 31. Bxd4 {[%clk 0:01:00]}  Rxc2 {[%clk 0:00:08]} 32. Bxe5 {[%clk 0:01:00]}  Kf7 {[%clk 0:00:08]} 33. f4 {[%clk 0:00:56]}  Ke6 {[%clk 0:00:06]} 34. Bh8 {[%clk 0:00:41]}  Ra2 {[%clk 0:00:06]} 35. f5+ {[%clk 0:00:40]}  gxf5 {[%clk 0:00:04]} 36. gxf5+ {[%clk 0:00:40]}  Ke7 {[%clk 0:00:04]} 37. Rh3 {[%clk 0:00:40]}  Rc6 {[%clk 0:00:03]} 38. Rh7+ {[%clk 0:00:40]}  Kf8 {[%clk 0:00:03]} 39. Be5 {[%clk 0:00:22]}  Rcc2 {[%clk 0:00:03]} 40. Rg7 {[%clk 0:00:07]}  b5 {[%clk 0:00:02]} 41. Rg6 {[%clk 0:00:06]}  Rxa3 {[%clk 0:00:03]} 42. Bd6+ {[%clk 0:00:06]}  Kf7 {[%clk 0:00:02]} 43. Bxa3 {[%clk 0:00:07]}  Ra2 {[%clk 0:00:02]} 44. Bc5 {[%clk 0:00:07]}  Re2 {[%clk 0:00:02]} 45. Re6 {[%clk 0:00:06]}  Rc2 {[%clk 0:00:02]} 46. Bd6 {[%clk 0:00:06]}  Rc6 {[%clk 0:00:01]} 47. Kf2 {[%clk 0:00:06]}  b4 {[%clk 0:00:01]} 48. Bxb4 {[%clk 0:00:06]}  Rc2+ {[%clk 0:00:01]} 49. Kf3 {[%clk 0:00:06]}  Rb2 {[%clk 0:00:01]} 50. Bd2 {[%clk 0:00:06]}  Rb3+ {[%clk 0:00:00]} 51. Kg4 {[%clk 0:00:06]} 1-0

[Event "January 2 Late 2024"]
[Site "https://www.chess.com"]
[Date "2024.01.02"]
[Round "5"]
[White "Gontcharov, Vladislav"]
[Black "Urbina Perez, Juan Antonio"]
[Result "1-0"]
[Board "108"]
[TimeControl "180+1"]
[WhiteFideId "4123492"]
[BlackFideId "2217368"]
[WhiteElo "2600"]
[BlackElo "2436"]
[WhiteTeam "RUS"]
[BlackTeam "ESP"]
[WhiteClock "0:01:01"]
[BlackClock "0:00:11"]

1. d4 {[%clk 0:03:00]}  d5 {[%clk 0:02:57]} 2. c4 {[%clk 0:02:59]}  c6 {[%clk 0:02:54]} 3. Nf3 {[%clk 0:02:56]}  Nf6 {[%clk 0:02:54]} 4. e3 {[%clk 0:02:56]}  Bg4 {[%clk 0:02:48]} 5. cxd5 {[%clk 0:02:54]}  Bxf3 {[%clk 0:02:47]} 6. Qxf3 {[%clk 0:02:51]}  cxd5 {[%clk 0:02:47]} 7. Nc3 {[%clk 0:02:50]}  e6 {[%clk 0:02:40]} 8. Bd3 {[%clk 0:02:48]}  Bd6 {[%clk 0:02:40]} 9. O-O {[%clk 0:02:48]}  O-O {[%clk 0:02:40]} 10. e4 {[%clk 0:02:42]}  dxe4 {[%clk 0:02:36]} 11. Nxe4 {[%clk 0:02:35]}  Nc6 {[%clk 0:02:36]} 12. Bg5 {[%clk 0:02:34]}  Be7 {[%clk 0:02:36]} 13. Rad1 {[%clk 0:02:32]}  Nxd4 {[%clk 0:02:16]} 14. Qh3 {[%clk 0:02:31]}  Nxe4 {[%clk 0:02:06]} 15. Bxe4 {[%clk 0:02:25]}  f5 {[%clk 0:02:05]} 16. Bxb7 {[%clk 0:01:56]}  Bxg5 {[%clk 0:01:55]} 17. Bxa8 {[%clk 0:01:56]}  Ne2+ {[%clk 0:01:54]} 18. Kh1 {[%clk 0:01:55]}  Qxa8 {[%clk 0:01:55]} 19. Qh5 {[%clk 0:01:50]}  Qxg2+ {[%clk 0:01:41]} 20. Kxg2 {[%clk 0:01:49]}  Nf4+ {[%clk 0:01:42]} 21. Kf3 {[%clk 0:01:50]}  Nxh5 {[%clk 0:01:43]} 22. Rd7 {[%clk 0:01:50]}  Rf7 {[%clk 0:01:39]} 23. Rfd1 {[%clk 0:01:48]}  Nf6 {[%clk 0:01:35]} 24. Rd8+ {[%clk 0:01:48]}  Rf8 {[%clk 0:01:35]} 25. Rxf8+ {[%clk 0:01:48]}  Kxf8 {[%clk 0:01:35]} 26. Rd8+ {[%clk 0:01:49]}  Kf7 {[%clk 0:01:34]} 27. Ra8 {[%clk 0:01:49]}  e5 {[%clk 0:01:34]} 28. Rxa7+ {[%clk 0:01:49]}  Kg6 {[%clk 0:01:34]} 29. a4 {[%clk 0:01:47]}  e4+ {[%clk 0:01:34]} 30. Ke2 {[%clk 0:01:47]}  f4 {[%clk 0:01:30]} 31. a5 {[%clk 0:01:43]}  f3+ {[%clk 0:01:30]} 32. Kf1 {[%clk 0:01:42]}  Ng4 {[%clk 0:01:22]} 33. h3 {[%clk 0:01:23]}  Nh2+ {[%clk 0:01:07]} 34. Kg1 {[%clk 0:01:17]}  e3 {[%clk 0:01:07]} 35. Ra6+ {[%clk 0:01:17]}  Kf5 {[%clk 0:01:05]} 36. fxe3 {[%clk 0:01:17]}  Ng4 {[%clk 0:00:32]} 37. hxg4+ {[%clk 0:01:15]}  Kxg4 {[%clk 0:00:33]} 38. Re6 {[%clk 0:01:10]}  Kf5 {[%clk 0:00:27]} 39. Re8 {[%clk 0:01:09]}  h5 {[%clk 0:00:14]} 40. a6 {[%clk 0:01:08]}  h4 {[%clk 0:00:15]} 41. a7 {[%clk 0:01:08]}  h3 {[%clk 0:00:16]} 42. a8=Q {[%clk 0:01:06]}  h2+ {[%clk 0:00:16]} 43. Kxh2 {[%clk 0:01:06]}  f2 {[%clk 0:00:11]} 44. Qe4+ {[%clk 0:01:01]} 1-0

[Event "January 2 Late 2024"]
[Site "https://www.chess.com"]
[Date "2024.01.02"]
[Round "5"]
[White "Palczert, Matyas"]
[Black "Jaque Gutierrez, Matias"]
[Result "1-0"]
[Board "111"]
[TimeControl "180+1"]
[WhiteFideId "784958"]
[BlackFideId "3426980"]
[WhiteElo "2580"]
[BlackElo "2433"]
[WhiteTeam "HUN"]
[BlackTeam "CHI"]
[WhiteClock "0:00:27"]
[BlackClock "0:00:10"]

1. d4 {[%clk 0:03:00]}  d5 {[%clk 0:02:58]} 2. e4 {[%clk 0:03:00]}  dxe4 {[%clk 0:02:57]} 3. Nc3 {[%clk 0:03:00]}  Nf6 {[%clk 0:02:56]} 4. f3 {[%clk 0:03:00]}  exf3 {[%clk 0:02:54]} 5. Nxf3 {[%clk 0:03:01]}  g6 {[%clk 0:02:54]} 6. Bc4 {[%clk 0:03:00]}  e6 {[%clk 0:02:48]} 7. O-O {[%clk 0:03:00]}  Bg7 {[%clk 0:02:46]} 8. Bg5 {[%clk 0:02:51]}  h6 {[%clk 0:02:41]} 9. Bxf6 {[%clk 0:02:45]}  Bxf6 {[%clk 0:02:41]} 10. Ne4 {[%clk 0:02:44]}  Bg7 {[%clk 0:02:36]} 11. Ne5 {[%clk 0:02:35]}  O-O {[%clk 0:02:34]} 12. c3 {[%clk 0:02:33]}  Nd7 {[%clk 0:02:33]} 13. Nxf7 {[%clk 0:02:20]}  Rxf7 {[%clk 0:02:28]} 14. Bxe6 {[%clk 0:02:17]}  Nf6 {[%clk 0:02:29]} 15. Bxf7+ {[%clk 0:02:13]}  Kxf7 {[%clk 0:02:29]} 16. Nxf6 {[%clk 0:01:42]}  Bxf6 {[%clk 0:02:29]} 17. Qb3+ {[%clk 0:01:42]}  Be6 {[%clk 0:02:10]} 18. Qxb7 {[%clk 0:01:37]}  Bd5 {[%clk 0:02:06]} 19. Qa6 {[%clk 0:01:27]}  c6 {[%clk 0:02:05]} 20. Qb7+ {[%clk 0:01:10]}  Ke6 {[%clk 0:00:50]} 21. Rae1+ {[%clk 0:01:04]}  Kd6 {[%clk 0:00:51]} 22. Rxf6+ {[%clk 0:00:54]}  Qxf6 {[%clk 0:00:48]} 23. Qxa8 {[%clk 0:00:53]}  Qg5 {[%clk 0:00:21]} 24. Qb8+ {[%clk 0:00:51]}  Kd7 {[%clk 0:00:22]} 25. Qe8+ {[%clk 0:00:45]}  Kc7 {[%clk 0:00:21]} 26. Qe7+ {[%clk 0:00:44]}  Qxe7 {[%clk 0:00:19]} 27. Rxe7+ {[%clk 0:00:44]}  Kb6 {[%clk 0:00:20]} 28. g3 {[%clk 0:00:43]}  Bxa2 {[%clk 0:00:20]} 29. Kf2 {[%clk 0:00:40]}  Kb5 {[%clk 0:00:20]} 30. Rxa7 {[%clk 0:00:38]}  Bd5 {[%clk 0:00:20]} 31. Ke3 {[%clk 0:00:36]}  Kc4 {[%clk 0:00:21]} 32. Rb7 {[%clk 0:00:33]}  Be6 {[%clk 0:00:17]} 33. Rb4+ {[%clk 0:00:32]}  Kd5 {[%clk 0:00:17]} 34. c4+ {[%clk 0:00:31]}  Kd6 {[%clk 0:00:16]} 35. b3 {[%clk 0:00:30]}  Bf5 {[%clk 0:00:16]} 36. Rb6 {[%clk 0:00:29]}  Bc8 {[%clk 0:00:14]} 37. d5 {[%clk 0:00:28]}  Bd7 {[%clk 0:00:09]} 38. Rxc6+ {[%clk 0:00:28]}  Bxc6 {[%clk 0:00:09]} 39. dxc6 {[%clk 0:00:28]}  Kxc6 {[%clk 0:00:10]} 40. Kd4 {[%clk 0:00:27]}  Kb6 {[%clk 0:00:10]} 1-0

[Event "January 2 Late 2024"]
[Site "https://www.chess.com"]
[Date "2024.01.02"]
[Round "5"]
[White "Aggelis, Nikolaos"]
[Black "Dinu, Dumitru-Daniel"]
[Result "0-1"]
[Board "112"]
[TimeControl "180+1"]
[WhiteFideId "4213220"]
[BlackFideId "1208403"]
[WhiteElo "2579"]
[BlackElo "2512"]
[WhiteTeam "GRE"]
[BlackTeam "ROU"]
[WhiteClock "0:00:04"]
[BlackClock "0:00:16"]

1. c4 {[%clk 0:02:56]}  e5 {[%clk 0:02:59]} 2. g3 {[%clk 0:02:53]}  Nc6 {[%clk 0:02:57]} 3. Bg2 {[%clk 0:02:48]}  g6 {[%clk 0:02:57]} 4. Nc3 {[%clk 0:02:46]}  Bg7 {[%clk 0:02:57]} 5. e3 {[%clk 0:02:37]}  Nge7 {[%clk 0:02:55]} 6. Nge2 {[%clk 0:02:37]}  h5 {[%clk 0:02:51]} 7. O-O {[%clk 0:02:36]}  h4 {[%clk 0:02:51]} 8. d4 {[%clk 0:02:35]}  exd4 {[%clk 0:02:52]} 9. exd4 {[%clk 0:02:31]}  hxg3 {[%clk 0:02:51]} 10. hxg3 {[%clk 0:02:30]}  d6 {[%clk 0:02:50]} 11. Be3 {[%clk 0:02:24]}  Bh3 {[%clk 0:02:45]} 12. Nf4 {[%clk 0:02:24]}  Bxg2 {[%clk 0:02:44]} 13. Kxg2 {[%clk 0:02:25]}  Qd7 {[%clk 0:02:43]} 14. Rh1 {[%clk 0:02:24]}  O-O-O {[%clk 0:02:42]} 15. Qa4 {[%clk 0:01:49]}  a6 {[%clk 0:02:17]} 16. d5 {[%clk 0:01:47]}  Ne5 {[%clk 0:02:13]} 17. Qxd7+ {[%clk 0:01:45]}  Kxd7 {[%clk 0:02:12]} 18. c5 {[%clk 0:01:38]}  Nc4 {[%clk 0:02:06]} 19. Nd3 {[%clk 0:01:33]}  Nxe3+ {[%clk 0:02:05]} 20. fxe3 {[%clk 0:01:33]}  Bxc3 {[%clk 0:02:04]} 21. bxc3 {[%clk 0:01:34]}  Nxd5 {[%clk 0:02:04]} 22. cxd6 {[%clk 0:01:33]}  cxd6 {[%clk 0:01:57]} 23. Rxh8 {[%clk 0:01:22]}  Rxh8 {[%clk 0:01:56]} 24. Rb1 {[%clk 0:01:20]}  b5 {[%clk 0:01:51]} 25. Nb4 {[%clk 0:01:20]}  Nxc3 {[%clk 0:01:32]} 26. Rc1 {[%clk 0:01:19]}  a5 {[%clk 0:01:22]} 27. Rxc3 {[%clk 0:01:18]}  axb4 {[%clk 0:01:22]} 28. Rb3 {[%clk 0:01:17]}  Re8 {[%clk 0:01:17]} 29. Kf3 {[%clk 0:01:12]}  Kc6 {[%clk 0:01:10]} 30. Rxb4 {[%clk 0:01:12]}  Kc5 {[%clk 0:01:11]} 31. Rb2 {[%clk 0:01:10]}  b4 {[%clk 0:01:06]} 32. Rc2+ {[%clk 0:01:07]}  Kb5 {[%clk 0:01:06]} 33. Rd2 {[%clk 0:01:07]}  Rd8 {[%clk 0:01:01]} 34. Rd5+ {[%clk 0:01:04]}  Kc4 {[%clk 0:00:59]} 35. Ra5 {[%clk 0:01:03]}  Rc8 {[%clk 0:00:54]} 36. Ra7 {[%clk 0:01:03]}  f5 {[%clk 0:00:47]} 37. Ra6 {[%clk 0:00:55]}  Rd8 {[%clk 0:00:27]} 38. Ke2 {[%clk 0:00:39]}  Kb5 {[%clk 0:00:26]} 39. Ra7 {[%clk 0:00:38]}  Rh8 {[%clk 0:00:26]} 40. Kf3 {[%clk 0:00:31]}  Rh2 {[%clk 0:00:25]} 41. Ra8 {[%clk 0:00:30]}  Kc4 {[%clk 0:00:22]} 42. Ra6 {[%clk 0:00:24]}  d5 {[%clk 0:00:21]} 43. Ra8 {[%clk 0:00:12]}  Kc3 {[%clk 0:00:19]} 44. Ra5 {[%clk 0:00:12]}  d4 {[%clk 0:00:17]} 45. exd4 {[%clk 0:00:11]}  Kxd4 {[%clk 0:00:18]} 46. g4 {[%clk 0:00:11]}  Rh3+ {[%clk 0:00:16]} 47. Kg2 {[%clk 0:00:08]}  Ra3 {[%clk 0:00:15]} 48. Rb5 {[%clk 0:00:07]}  Rxa2+ {[%clk 0:00:14]} 49. Kg3 {[%clk 0:00:08]}  Kc4 {[%clk 0:00:15]} 50. Rb6 {[%clk 0:00:08]}  fxg4 {[%clk 0:00:15]} 51. Kxg4 {[%clk 0:00:08]}  b3 {[%clk 0:00:16]} 52. Rc6+ {[%clk 0:00:08]}  Kd3 {[%clk 0:00:15]} 53. Rd6+ {[%clk 0:00:08]}  Kc2 {[%clk 0:00:15]} 54. Rc6+ {[%clk 0:00:09]}  Kb1 {[%clk 0:00:16]} 55. Rxg6 {[%clk 0:00:04]}  Rg2+ {[%clk 0:00:16]} 0-1

[Event "January 2 Late 2024"]
[Site "https://www.chess.com"]
[Date "2024.01.02"]
[Round "5"]
[White "Bellissimo, Joseph F."]
[Black "Andrews, Todd"]
[Result "1-0"]
[Board "113"]
[TimeControl "180+1"]
[WhiteFideId "2609843"]
[BlackFideId "2012456"]
[WhiteElo "2430"]
[BlackElo "2578"]
[WhiteTeam "CAN"]
[BlackTeam "USA"]
[WhiteClock "0:00:10"]
[BlackClock "0:00:00"]

1. e4 {[%clk 0:02:54]}  e6 {[%clk 0:02:59]} 2. d4 {[%clk 0:02:54]}  d5 {[%clk 0:03:00]} 3. Nd2 {[%clk 0:02:54]}  Nf6 {[%clk 0:03:00]} 4. e5 {[%clk 0:02:54]}  Nfd7 {[%clk 0:03:00]} 5. f4 {[%clk 0:02:54]}  c5 {[%clk 0:03:01]} 6. c3 {[%clk 0:02:55]}  Nc6 {[%clk 0:03:01]} 7. Ndf3 {[%clk 0:02:55]}  Qb6 {[%clk 0:03:02]} 8. a3 {[%clk 0:02:55]}  a5 {[%clk 0:02:56]} 9. h4 {[%clk 0:02:53]}  Be7 {[%clk 0:02:54]} 10. Nh3 {[%clk 0:02:45]}  a4 {[%clk 0:02:51]} 11. Rb1 {[%clk 0:02:28]}  cxd4 {[%clk 0:02:50]} 12. cxd4 {[%clk 0:02:26]}  Qb3 {[%clk 0:02:50]} 13. Qe2 {[%clk 0:02:13]}  Bxa3 {[%clk 0:02:34]} 14. Kf2 {[%clk 0:02:13]}  Be7 {[%clk 0:02:28]} 15. Ra1 {[%clk 0:01:59]}  Nb6 {[%clk 0:02:23]} 16. Kg1 {[%clk 0:01:51]}  Nc4 {[%clk 0:02:20]} 17. Qf2 {[%clk 0:01:51]}  Bd7 {[%clk 0:01:47]} 18. Kh2 {[%clk 0:01:47]}  Rc8 {[%clk 0:01:30]} 19. Be2 {[%clk 0:01:45]}  Nb6 {[%clk 0:01:25]} 20. Be3 {[%clk 0:01:38]}  Na5 {[%clk 0:01:17]} 21. Nd2 {[%clk 0:01:24]}  Qb4 {[%clk 0:01:15]} 22. Rhc1 {[%clk 0:01:19]}  O-O {[%clk 0:01:10]} 23. Bd3 {[%clk 0:01:17]}  f5 {[%clk 0:01:08]} 24. exf6 {[%clk 0:01:14]}  Bxf6 {[%clk 0:01:06]} 25. Ng5 {[%clk 0:01:15]}  Bxg5 {[%clk 0:00:59]} 26. hxg5 {[%clk 0:01:15]}  g6 {[%clk 0:00:58]} 27. Qh4 {[%clk 0:01:09]}  Qd6 {[%clk 0:00:48]} 28. Kg3 {[%clk 0:01:02]}  Nbc4 {[%clk 0:00:40]} 29. Rh1 {[%clk 0:00:42]}  h5 {[%clk 0:00:18]} 30. Nxc4 {[%clk 0:00:24]}  Nxc4 {[%clk 0:00:17]} 31. Bc1 {[%clk 0:00:23]}  e5 {[%clk 0:00:15]} 32. dxe5 {[%clk 0:00:21]}  Nxe5 {[%clk 0:00:15]} 33. fxe5 {[%clk 0:00:20]}  Qxe5+ {[%clk 0:00:16]} 34. Bf4 {[%clk 0:00:21]}  Qd4 {[%clk 0:00:10]} 35. Bxg6 {[%clk 0:00:21]}  Rce8 {[%clk 0:00:04]} 36. Bxe8 {[%clk 0:00:20]}  Qd3+ {[%clk 0:00:05]} 37. Kh2 {[%clk 0:00:19]}  Bxe8 {[%clk 0:00:03]} 38. Raf1 {[%clk 0:00:12]}  Bg6 {[%clk 0:00:02]} 39. Be5 {[%clk 0:00:11]}  Rxf1 {[%clk 0:00:01]} 40. Rxf1 {[%clk 0:00:11]}  Qxf1 {[%clk 0:00:02]} 41. Qb4 {[%clk 0:00:10]}  Qf5 {[%clk 0:00:03]} 42. Qd6 {[%clk 0:00:10]}  Qf7 {[%clk 0:00:02]} 43. Qd8+ {[%clk 0:00:10]}  Qe8 {[%clk 0:00:00]} 44. Qf6 {[%clk 0:00:10]} 1-0

[Event "January 2 Late 2024"]
[Site "https://www.chess.com"]
[Date "2024.01.02"]
[Round "5"]
[White "Federzoni, Enzo"]
[Black "AmanteDeMoi"]
[Result "1-0"]
[Board "114"]
[TimeControl "180+1"]
[WhiteFideId "2173301"]
[WhiteElo "2429"]
[BlackElo "2576"]
[WhiteTeam "BRA"]
[WhiteClock "0:00:46"]
[BlackClock "0:00:00"]

1. e4 {[%clk 0:03:00]}  g6 {[%clk 0:02:54]} 2. d4 {[%clk 0:03:00]}  Bg7 {[%clk 0:02:54]} 3. Nc3 {[%clk 0:03:00]}  c6 {[%clk 0:02:54]} 4. Nf3 {[%clk 0:02:56]}  d5 {[%clk 0:02:33]} 5. Bd3 {[%clk 0:02:52]}  dxe4 {[%clk 0:02:33]} 6. Nxe4 {[%clk 0:02:51]}  Bg4 {[%clk 0:02:33]} 7. c3 {[%clk 0:02:45]}  Nd7 {[%clk 0:02:19]} 8. O-O {[%clk 0:02:42]}  Ngf6 {[%clk 0:02:19]} 9. h3 {[%clk 0:02:39]}  Nxe4 {[%clk 0:01:48]} 10. Bxe4 {[%clk 0:02:37]}  Bxf3 {[%clk 0:01:40]} 11. Bxf3 {[%clk 0:02:38]}  O-O {[%clk 0:01:40]} 12. Re1 {[%clk 0:02:39]}  e5 {[%clk 0:01:20]} 13. d5 {[%clk 0:02:35]}  c5 {[%clk 0:00:47]} 14. Be3 {[%clk 0:02:23]}  f5 {[%clk 0:00:36]} 15. d6 {[%clk 0:02:10]}  e4 {[%clk 0:00:36]} 16. Qd5+ {[%clk 0:02:07]}  Kh8 {[%clk 0:00:36]} 17. Be2 {[%clk 0:02:06]}  f4 {[%clk 0:00:30]} 18. Bd2 {[%clk 0:02:01]}  f3 {[%clk 0:00:21]} 19. Bf1 {[%clk 0:01:59]}  Nf6 {[%clk 0:00:18]} 20. Qxb7 {[%clk 0:01:54]}  Qxd6 {[%clk 0:00:17]} 21. Rad1 {[%clk 0:01:53]}  Rab8 {[%clk 0:00:15]} 22. Qxa7 {[%clk 0:01:53]}  Qe6 {[%clk 0:00:11]} 23. b3 {[%clk 0:01:51]}  Ra8 {[%clk 0:00:10]} 24. Qxc5 {[%clk 0:01:48]}  Rxa2 {[%clk 0:00:11]} 25. b4 {[%clk 0:01:43]}  Ng8 {[%clk 0:00:08]} 26. Bc4 {[%clk 0:01:41]}  Qe8 {[%clk 0:00:04]} 27. Bxa2 {[%clk 0:01:40]}  Rf5 {[%clk 0:00:02]} 28. Qe3 {[%clk 0:01:26]}  fxg2 {[%clk 0:00:03]} 29. Qxe4 {[%clk 0:01:20]}  Qa4 {[%clk 0:00:03]} 30. Bxg8 {[%clk 0:01:17]}  Kxg8 {[%clk 0:00:04]} 31. Qc4+ {[%clk 0:01:13]}  Kh8 {[%clk 0:00:04]} 32. Re8+ {[%clk 0:01:12]}  Qxe8 {[%clk 0:00:04]} 33. Re1 {[%clk 0:00:48]}  h5 {[%clk 0:00:00]} 34. Rxe8+ {[%clk 0:00:46]} 1-0